bitfinex/quotes_ETHUSD_20240701
["timestamp","ask_amount","ask_price","bid_price","bid_amount"]
[1719861050685,0.10147813,3485.6,3485.5,3.1589]
[1719861050885,5.23872,3486.4,3485.5,3.1589]
[1719861051229,2.58249549,3486.3,3485.7,0.718]
[1719861051440,2.58249549,3486.2,3485.7,0.718]
[1719861051578,6.121205,3486.4,3485.7,0.718]
[1719861051579,0.49663326,3486.1,3485.7,0.718]
[1719861051783,6.121205,3486.4,3485.7,0.718]
[1719861052163,3.48141662,3486.3,3485.7,0.718]
[1719861052333,2.08586506,3486.2,3485.7,0.718]
[1719861052627,0.49663453,3486.1,3485.7,0.718]
[1719861053097,0.49663453,3486.2,3485.7,0.718]
[1719861053298,2.58248281,3486.1,3485.7,0.718]
[1719861053507,0.6634288,3486.2,3485.7,0.718]
[1719861053508,0.49663453,3486.0,3485.7,0.718]
[1719861053712,0.6634288,3486.2,3485.7,0.718]
[1719861053901,2.5825016,3486.1,3485.7,0.718]
[1719861054097,0.4966349,3486.0,3485.7,0.718]
[1719861054313,0.6634288,3486.2,3485.7,0.718]
[1719861054521,0.20589972,3486.0,3485.3,3.0]
[1719861054715,2.58251961,3485.9,3484.9,6.0]
[1719861054931,5.13133,3486.0,3485.2,0.718]
[1719861054932,4.95493749,3485.8,3485.2,0.718]
[1719861055089,3.87744675,3485.8,3485.2,0.718]
[1719861055289,2.08601701,3485.7,3485.2,0.718]
[1719861058117,3.87744675,3485.8,3485.2,0.718]
[1719861058293,5.28136,3485.6,3484.9,3.0]
[1719861058495,3.75710369,3485.5,3484.4,3.0]
[1719861058818,2.3622,3485.1,3484.5,0.718]
[1719861059016,2.3622,3485.1,3484.7,0.718]
[1719861059939,2.2797,3485.4,3484.7,0.718]
[1719861060110,2.5832322,3485.3,3484.7,0.718]
[1719861060439,2.08646157,3485.2,3484.9,0.718]
[1719861060613,2.08646157,3485.1,3484.9,0.718]
[1719861060814,5.14881,3485.4,3484.9,0.718]
[1719861061013,2.08639727,3485.3,3484.9,0.718]
[1719861061227,5.14606,3485.7,3484.9,0.718]
[1719861061548,5.45205155,3485.6,3484.9,0.718]
[1719861061718,2.58310155,3485.5,3484.9,0.718]
[1719861061912,2.58310155,3485.4,3484.9,0.718]
[1719861062118,2.08636168,3485.3,3484.9,0.718]
[1719861062327,2.08636168,3485.2,3484.9,0.718]
[1719861062844,0.10129908,3485.1,3484.9,0.718]
[1719861063148,2.86895,3485.6,3484.9,0.718]
[1719861063323,0.10129908,3485.0,3484.9,0.718]
[1719861063646,2.86873,3485.9,3484.9,0.718]
[1719861063944,2.08616934,3485.8,3484.9,2.4168]
[1719861064130,2.08616934,3485.7,3485.4,0.718]
[1719861064327,2.18740828,3485.7,3485.4,0.718]
[1719861064527,0.10123894,3485.7,3485.4,0.718]
[1719861064729,2.3959,3486.0,3485.4,0.718]
[1719861064937,0.10123894,3485.6,3485.4,0.718]
[1719861065112,5.26451,3486.0,3485.4,0.718]
[1719861065314,0.10123894,3485.5,3485.4,0.718]
[1719861065526,5.26451,3486.0,3485.4,0.718]
[1719861065728,3.0,3504.4,3485.3,3.0]
[1719861065729,0.10123894,3485.5,3485.3,3.0]
[1719861065910,5.86834,3486.4,3485.4,3.4348]
[1719861066117,2.58253843,3486.3,3485.7,0.718]
[1719861066315,2.58253843,3486.2,3485.7,0.718]
[1719861066656,5.86834,3486.4,3485.7,0.718]
[1719861066862,5.86834,3486.4,3485.4,2.4168]
[1719861066863,0.49665011,3486.1,3485.4,2.4168]
[1719861067051,4.97848061,3486.0,3485.3,3.0]
[1719861067257,2.58258061,3485.9,3485.3,3.718]
[1719861067459,2.0859305,3485.8,3485.3,3.718]
[1719861067664,5.26452,3486.0,3485.3,3.718]
[1719861067968,2.58272839,3485.9,3485.3,3.718]
[1719861068165,2.08604986,3485.8,3485.3,3.718]
[1719861068367,2.08605961,3485.7,3485.3,3.718]
[1719861068578,5.26452,3486.0,3485.3,3.718]
[1719861068888,2.5827464,3485.9,3485.3,3.718]
[1719861069169,2.0860644,3485.8,3485.3,3.718]
[1719861069379,6.23412151,3486.0,3485.3,3.718]
[1719861069560,2.58275005,3485.9,3485.3,3.718]
[1719861069737,2.08606723,3485.8,3485.3,3.718]
[1719861069937,2.08607432,3485.7,3485.3,3.718]
[1719861070148,6.23412151,3486.0,3485.3,3.718]
[1719861070359,2.5827569,3485.9,3485.3,3.718]
[1719861070678,2.5827569,3485.8,3485.3,3.718]
[1719861070882,2.08607288,3485.7,3485.3,3.718]
[1719861071172,6.23412151,3486.0,3485.3,3.718]
[1719861071382,3.64931551,3485.9,3485.3,3.718]
[1719861071548,2.58274885,3485.8,3485.3,3.718]
[1719861071733,3.93527666,3485.9,3485.3,0.718]
[1719861071930,2.58275782,3485.8,3485.0,3.1348]
[1719861072128,2.58276506,3485.7,3485.2,0.718]
[1719861072329,5.26453,3486.0,3485.2,0.718]
[1719861072542,3.48057176,3485.9,3485.2,0.718]
[1719861072750,2.58276125,3485.8,3485.2,0.718]
[1719861072952,2.58276125,3485.7,3485.2,0.718]
[1719861073150,5.26453,3486.0,3485.2,0.718]
[1719861073669,2.58261567,3485.9,3485.2,0.718]
[1719861073995,2.58257832,3485.8,3485.6,0.718]
[1719861074203,2.4066,3486.3,3485.6,0.718]
[1719861074502,2.58253171,3486.2,3485.6,0.718]
[1719861074699,2.085891,3486.1,3485.6,0.718]
[1719861074997,0.49664071,3486.0,3485.6,0.718]
[1719861075156,2.085891,3485.9,3485.4,2.3985]
[1719861075354,0.49664071,3485.8,3485.7,0.718]
[1719861075857,0.49663631,3485.8,3485.7,0.718]
[1719861076277,0.59800503,3485.8,3485.7,0.718]
[1719861077554,2.68389573,3485.8,3485.7,0.718]
[1719861079400,0.10136928,3485.8,3485.7,0.718]
[1719861079729,2.18729243,3485.8,3485.7,0.718]
[1719861079875,2.58257152,3485.8,3485.7,0.718]
[1719861080077,2.6839408,3485.8,3485.4,3.00543551]
[1719861080302,2.6839408,3485.8,3485.5,0.718]
[1719861080512,0.10136928,3485.8,3485.5,0.718]
[1719861080678,5.27498,3486.3,3485.5,1.39034355]
[1719861080998,0.10136928,3486.2,3485.5,0.718]
[1719861082289,0.59801875,3486.2,3485.5,0.718]
[1719861082494,2.68394394,3486.2,3485.5,0.718]
[1719861082808,0.59801875,3486.2,3485.5,0.718]
[1719861084382,0.10136928,3486.2,3485.5,0.718]
[1719861086330,0.44077277,3486.2,3485.5,0.718]
[1719861087554,0.49664651,3486.1,3485.5,0.718]
[1719861087855,0.10137788,3486.1,3485.5,0.718]
[1719861088143,0.49664553,3486.0,3485.5,0.718]
[1719861088306,0.49665358,3485.9,3485.5,0.718]
[1719861088501,0.49665358,3485.8,3485.5,0.718]
[1719861088704,0.49665358,3485.7,3485.5,0.718]
[1719861088904,2.4066,3486.3,3485.5,0.718]
[1719861089104,0.59802645,3486.2,3485.5,0.718]
[1719861089301,0.49664857,3486.1,3485.5,0.718]
[1719861089608,0.59801785,3486.0,3485.5,0.718]
[1719861089857,0.49664857,3485.9,3485.5,0.718]
[1719861090148,0.49664857,3485.8,3485.7,0.718]
[1719861090304,0.59801785,3485.8,3485.7,1.03538776]
[1719861090509,0.10136928,3485.8,3485.7,1.03538776]
[1719861090719,0.49664297,3486.2,3485.7,1.03538776]
[1719861090923,0.10137358,3485.8,3485.7,0.718]
[1719861091137,0.59801655,3485.8,3485.7,0.718]
[1719861091950,0.59799421,3485.8,3485.7,0.718]
[1719861092300,9.8962,3486.7,3485.7,0.718]
[1719861092418,0.49660275,3486.6,3485.8,0.05736972]
[1719861092625,0.49660275,3486.5,3485.8,0.05736972]
[1719861092826,0.49660275,3486.4,3485.8,0.05736972]
[1719861093030,0.49660275,3486.3,3485.8,0.05736972]
[1719861093558,0.10142945,3486.2,3485.8,0.05736972]
[1719861093729,0.49660275,3486.5,3485.8,0.05736972]
[1719861093930,0.10142945,3486.1,3485.8,0.05736972]
[1719861094127,0.49660275,3486.0,3485.8,0.05736972]
[1719861094455,0.49660275,3485.9,3485.7,0.77537003]
[1719861094650,0.49660275,3485.9,3485.7,1.37966703]
[1719861095030,0.49660275,3486.6,3485.7,1.37966703]
[1719861095232,0.49660275,3486.6,3485.8,0.05736974]
[1719861095564,0.10142945,3486.5,3485.9,0.718]
[1719861095761,0.49660275,3486.4,3485.9,0.718]
[1719861095960,0.49660635,3486.3,3485.9,0.718]
[1719861096264,0.49660635,3486.2,3485.9,0.718]
[1719861096667,0.49660635,3486.2,3485.7,0.718]
[1719861096837,0.10142945,3486.1,3485.7,0.718]
[1719861097344,0.5980358,3486.0,3485.7,0.718]
[1719861097556,0.49660635,3485.9,3485.7,0.718]
[1719861097930,0.49660635,3485.8,3485.7,0.718]
[1719861098130,0.49660635,3486.5,3485.7,0.718]
[1719861098366,0.10142945,3485.8,3485.7,0.718]
[1719861098530,0.49660635,3485.8,3485.7,0.718]
[1719861098948,0.10142945,3485.8,3485.7,0.718]
[1719861099232,0.10142945,3485.8,3485.3,3.0]
[1719861099436,2.3738,3486.3,3485.5,0.718]
[1719861099783,0.59806975,3486.2,3485.5,0.718]
[1719861099974,0.59807554,3486.2,3485.5,0.718]
[1719861100131,0.49664609,3486.1,3485.5,0.718]
[1719861100332,0.49664609,3486.0,3485.5,0.718]
[1719861100629,0.49664609,3485.9,3485.5,0.718]
[1719861100829,0.10142945,3486.0,3485.5,0.718]
[1719861100830,0.49664609,3485.8,3485.5,0.718]
[1719861101048,0.49664609,3485.7,3485.5,0.718]
[1719861101252,5.24217,3486.3,3485.5,0.718]
[1719861101455,0.10142945,3485.6,3485.5,0.718]
[1719861101654,5.24217,3486.3,3485.5,0.718]
[1719861101876,0.49663878,3486.2,3485.5,0.718]
[1719861102076,0.49663878,3486.1,3485.5,0.718]
[1719861102375,0.49663878,3486.0,3485.5,0.718]
[1719861102576,2.08588785,3485.9,3485.5,0.718]
[1719861102877,2.58252663,3485.8,3485.5,0.718]
[1719861103176,2.58252403,3485.7,3485.5,0.718]
[1719861103387,2.58252403,3485.6,3485.5,0.718]
[1719861104077,2.68395348,3485.6,3485.5,0.718]
[1719861106285,0.10142945,3485.6,3485.5,0.718]
[1719861106486,2.18732294,3485.6,3485.5,0.718]
[1719861106646,2.68396424,3485.6,3485.5,0.718]
[1719861109362,0.10142945,3485.6,3485.5,1.0898]
[1719861109676,0.49663809,3486.2,3485.7,3.0]
[1719861109872,2.58252033,3486.1,3485.7,3.718]
[1719861110085,5.45982683,3486.0,3485.7,3.718]
[1719861110272,5.45982683,3485.9,3485.7,3.718]
[1719861110479,2.3738,3486.3,3485.7,3.718]
[1719861110480,5.45982683,3485.8,3485.7,3.718]
[1719861110664,5.56124195,3485.8,3485.7,3.718]
[1719861112348,2.68393413,3485.8,3485.7,6.7848]
[1719861112622,0.10141512,3485.8,3485.7,7.3348]
[1719861112760,7.48,3486.5,3485.7,7.3348]
[1719861112761,2.08561836,3486.4,3485.7,10.20366]
[1719861112966,2.58216891,3486.3,3486.0,0.718]
[1719861113167,2.58216891,3486.2,3485.7,9.48566]
[1719861113367,2.08561836,3486.1,3485.8,1.1077986]
[1719861113603,2.08561836,3486.0,3485.8,1.1077986]
[1719861113777,2.08561836,3485.9,3485.8,1.1077986]
[1719861113982,2.08550745,3485.9,3485.8,1.8257986]
[1719861114168,2.08550745,3486.4,3485.8,1.8257986]
[1719861114503,2.58206133,3486.3,3486.2,0.718]
[1719861114915,5.45916269,3486.3,3485.7,3.0]
[1719861115106,2.08550745,3486.2,3485.7,3.718]
[1719861115308,0.49655388,3486.1,3485.9,0.718]
[1719861115505,2.08550745,3486.0,3485.9,0.718]
[1719861115816,2.3845,3486.3,3485.9,0.718]
[1719861116133,2.5822913,3486.2,3485.9,0.718]
[1719861116319,2.5822913,3486.1,3485.9,0.718]
[1719861116534,2.3845,3486.3,3485.9,0.718]
[1719861116535,2.58230115,3486.0,3485.9,0.718]
[1719861117174,2.58230115,3486.0,3485.7,3.0]
[1719861117398,2.58230115,3485.9,3485.7,3.0]
[1719861117601,2.08569789,3485.8,3485.7,3.0]
[1719861117811,2.58233078,3485.8,3485.7,3.0]
[1719861119140,2.58251361,3485.8,3485.7,3.0]
[1719861119349,2.58251305,3485.8,3485.3,3.0]
[1719861119504,2.88115676,3485.7,3485.3,3.0]
[1719861119704,2.58261518,3485.6,3485.3,3.718]
[1719861119954,2.08595842,3485.5,3485.3,3.718]
[1719861120154,2.08595842,3485.4,3485.3,3.718]
[1719861120461,2.08595842,3485.6,3485.3,3.718]
[1719861120613,2.3845,3485.7,3485.3,3.718]
[1719861120614,2.08595842,3485.5,3485.3,3.718]
[1719861120812,2.08595842,3485.4,3485.3,3.718]
[1719861121131,2.08595842,3485.6,3485.3,3.718]
[1719861121539,2.18754456,3485.5,3485.3,3.718]
[1719861121741,2.08602919,3485.4,3485.3,3.6718]
[1719861121936,2.08599162,3485.4,3485.3,4.3898]
[1719861122113,0.10151537,3485.4,3485.3,4.3898]
[1719861122309,2.08599162,3485.4,3485.3,4.3898]
[1719861122520,2.18748692,3485.4,3485.3,4.3898]
[1719861124858,2.18748585,3485.4,3485.3,4.3898]
[1719861126740,2.18748656,3485.4,3485.3,4.3898]
[1719861126944,2.18748656,3485.4,3485.3,3.6718]
[1719861127257,2.18748656,3485.4,3485.3,3.0]
[1719861127461,2.68419644,3485.4,3484.7,0.718]
[1719861127659,2.08599126,3485.3,3484.7,3.718]
[1719861127873,2.08629064,3485.2,3484.9,0.718]
[1719861128183,2.68430548,3485.2,3485.1,3.0]
[1719861128336,2.68432382,3485.2,3484.9,0.718]
[1719861128660,2.08629064,3485.1,3484.9,0.718]
[1719861129176,0.10130496,3485.0,3484.9,0.718]
[1719861129334,2.1875956,3485.0,3484.9,0.718]
[1719861130835,2.18754746,3485.0,3484.9,0.718]
[1719861131236,0.10130496,3485.0,3484.9,0.718]
[1719861131442,2.08624294,3485.0,3484.9,0.718]
[1719861131675,0.10126198,3485.0,3484.9,0.718]
[1719861132044,2.08624294,3485.2,3484.9,0.718]
[1719861132265,0.10126198,3485.0,3484.9,0.718]
[1719861132578,2.18750492,3485.0,3484.9,0.718]
[1719861134046,2.18749522,3485.0,3484.9,0.718]
[1719861137488,0.10126198,3485.0,3484.9,0.718]
[1719861137857,2.3468,3485.5,3485.1,3.0]
[1719861138062,2.5829399,3485.4,3485.2,0.718]
[1719861138362,2.08622069,3485.3,3485.2,3.0653]
[1719861138564,2.08622069,3485.3,3485.2,3.67183]
[1719861138746,2.18748267,3485.3,3485.2,3.67183]
[1719861138942,0.10126198,3485.3,3485.2,3.67183]
[1719861139147,2.2874,3486.0,3485.2,3.67183]
[1719861139348,5.56131107,3485.9,3485.5,0.718]
[1719861139591,2.58264302,3485.8,3485.5,0.718]
[1719861139753,2.18721397,3485.7,3485.5,0.718]
[1719861139948,2.08598065,3485.6,3485.5,0.718]
[1719861140494,0.10123332,3485.6,3485.5,0.718]
[1719861140699,0.10123332,3485.6,3485.5,3.718]
[1719861140892,2.2672,3486.3,3485.5,4.09553788]
[1719861141190,2.68389296,3486.2,3485.7,0.718]
[1719861141366,2.08595153,3486.1,3485.7,0.718]
[1719861141686,0.59794716,3486.0,3485.7,0.718]
[1719861141885,2.58260664,3485.9,3485.7,0.718]
[1719861142182,2.58260664,3485.8,3485.6,0.718]
[1719861142383,2.18724358,3485.7,3485.5,3.0]
[1719861142624,2.08595153,3485.6,3485.5,3.0]
[1719861142839,2.18724645,3485.6,3485.5,3.0]
[1719861143494,2.18731806,3485.6,3485.5,3.0]
[1719861145331,0.10129492,3485.6,3485.5,3.0]
[1719861145531,2.68395726,3485.6,3485.5,3.0]
[1719861145741,2.58266162,3485.6,3485.5,3.0]
[1719861145944,2.70407051,3485.6,3485.5,3.0]
[1719861147102,2.70408633,3485.6,3485.5,3.718]
[1719861150119,0.12140906,3485.6,3485.5,3.718]
[1719861150506,2.70406109,3485.6,3485.5,3.718]
[1719861150739,2.70406506,3485.6,3485.5,3.718]
[1719861152716,2.70406506,3485.6,3485.5,5.9773]
[1719861152925,2.70405598,3485.6,3485.5,5.9773]
[1719861153167,2.60274672,3485.6,3485.5,5.9773]
[1719861153375,0.0200998,3485.6,3485.5,5.9773]
[1719861153522,0.51675387,3485.6,3485.5,5.9773]
[1719861154034,0.51675387,3485.6,3485.5,3.718]
[1719861154672,2.60270098,3485.6,3485.5,3.718]
[1719861156630,0.0200998,3485.6,3485.5,3.718]
[1719861156853,2.10598931,3485.6,3485.5,4.32476]
[1719861157781,0.0200998,3485.6,3485.5,4.32476]
[1719861159571,0.0200998,3485.6,3485.5,9.88112842]
[1719861160951,0.0200998,3485.6,3485.5,12.75014842]
[1719861161675,0.0200998,3485.6,3485.5,13.30014842]
[1719861179191,2.4333,3486.5,3486.2,3.0]
[1719861179378,2.58206999,3486.4,3486.3,0.718]
[1719861179581,2.68346691,3486.4,3486.3,0.718]
[1719861181514,0.10140379,3486.4,3486.3,0.718]
[1719861181820,2.68346827,3486.4,3486.3,0.718]
[1719861182120,2.68346826,3486.4,3486.3,0.718]
[1719861184680,2.18691752,3486.4,3486.3,0.718]
[1719861184900,2.6834684,3486.4,3486.3,0.718]
[1719861185529,2.6834684,3486.4,3486.3,1.0898]
[1719861187935,0.10140379,3486.4,3486.3,1.0898]
[1719861188121,2.683407,3486.4,3486.3,1.0898]
[1719861191248,0.10140379,3486.4,3486.3,1.0898]
[1719861191533,2.58199163,3486.6,3486.3,1.0898]
[1719861191757,2.58199095,3486.5,3486.3,1.0898]
[1719861191921,2.58199095,3486.4,3486.3,1.0898]
[1719861192524,2.68341764,3486.4,3486.3,1.0898]
[1719861193136,2.68341764,3486.4,3486.3,0.3718]
[1719861193336,2.68341764,3486.4,3486.2,3.718]
[1719861193637,2.58199095,3486.3,3486.2,3.718]
[1719861193815,2.6834119,3486.3,3486.2,3.718]
[1719861194016,2.68342817,3486.3,3486.2,3.718]
[1719861194353,4.76890225,3486.3,3486.2,3.718]
[1719861194543,2.68343188,3486.3,3486.2,3.718]
[1719861194927,2.58201093,3486.3,3486.2,3.718]
[1719861197518,2.256,3486.7,3486.2,3.718]
[1719861197876,2.68340224,3486.6,3486.2,3.718]
[1719861198147,2.58198129,3486.5,3486.2,3.718]
[1719861198307,2.58198129,3486.4,3486.2,3.718]
[1719861198514,2.58198129,3486.3,3486.2,3.718]
[1719861200884,2.256,3486.7,3486.2,3.718]
[1719861201182,5.56031478,3486.6,3486.2,3.718]
[1719861201386,2.58200181,3486.5,3486.2,3.718]
[1719861201685,2.58200181,3486.4,3486.2,3.718]
[1719861201884,2.58200181,3486.3,3486.2,3.718]
[1719861204111,0.49654095,3486.3,3486.2,3.718]
[1719861204270,2.58201298,3486.3,3486.2,3.718]
[1719861205783,2.256,3486.7,3486.2,3.718]
[1719861205980,0.49653765,3486.3,3486.2,3.718]
[1719861206293,2.58199579,3486.3,3486.2,3.718]
[1719861206495,2.68340814,3486.3,3486.2,3.718]
[1719861207414,0.10141235,3486.3,3486.2,3.718]
[1719861207582,0.59795059,3486.3,3486.2,3.718]
[1719861207913,2.68340884,3486.3,3486.2,3.718]
[1719861210787,2.68339734,3486.3,3486.2,3.718]
[1719861211224,2.68340801,3486.3,3486.2,3.718]
[1719861213495,2.68340738,3486.3,3486.2,3.718]
[1719861213992,2.68339426,3486.3,3486.2,3.718]
[1719861214239,2.68339426,3486.3,3486.2,4.33040634]
[1719861215736,2.58198191,3486.3,3486.2,4.33040634]
[1719861217232,2.58193189,3486.3,3486.2,4.33040634]
[1719861218822,2.08540653,3486.3,3486.2,4.33040634]
[1719861219125,2.08540653,3486.6,3486.2,4.33040634]
[1719861219321,2.58192916,3486.5,3486.2,3.61240634]
[1719861219664,2.58192916,3486.4,3486.2,3.0]
[1719861219867,2.08540653,3486.3,3486.2,3.0]
[1719861220163,2.08541036,3486.4,3486.3,0.718]
[1719861220324,0.49652779,3486.4,3486.3,0.718]
[1719861220536,0.4965277,3486.4,3486.3,0.718]
[1719861220737,2.08541635,3486.5,3486.3,0.718]
[1719861220970,2.6833498,3486.4,3486.3,0.718]
[1719861223383,2.68332319,3486.4,3486.3,0.718]
[1719861223528,2.68331923,3486.4,3486.3,0.718]
[1719861223725,2.68331916,3486.4,3486.3,0.718]
[1719861225853,2.1867989,3486.4,3486.3,0.718]
[1719861226053,2.68331888,3486.4,3486.3,0.718]
[1719861227077,2.68329739,3486.4,3486.3,0.718]
[1719861230166,2.18684828,3486.4,3486.3,6.31193335]
[1719861230343,5.382434,3487.1,3487.0,3.0]
[1719861230539,2.281,3487.1,3487.0,3.718]
[1719861230854,2.77743978,3487.1,3487.0,3.718]
[1719861233647,0.49642985,3487.4,3487.3,0.718]
[1719861234178,0.1204189,3487.5,3487.4,3.0]
[1719861238011,0.21879013,3487.5,3487.4,3.0]
[1719861242287,0.21879013,3487.5,3487.4,3.718]
[1719861247476,0.21879013,3487.5,3487.4,4.0898]
[1719861248692,0.21879013,3487.5,3487.4,6.5808]
[1719861249111,0.1204189,3487.5,3487.4,6.5808]
[1719861249406,0.1204189,3487.5,3487.4,3.3718]
[1719861249613,0.1204189,3487.5,3487.4,4.0898]
[1719861250109,0.21879153,3487.5,3487.4,4.0898]
[1719861252814,0.21879153,3487.5,3487.4,3.3718]
[1719861253136,0.21879153,3487.5,3487.4,3.718]
[1719861253137,2.69299153,3487.5,3487.4,3.718]
[1719861253887,0.21879153,3487.5,3487.4,3.718]
[1719861254342,0.21879153,3487.5,3487.4,3.0]
[1719861254490,0.21879153,3487.5,3487.4,3.718]
[1719861261206,0.71518597,3487.5,3487.4,3.718]
[1719861261407,0.21879153,3487.5,3487.4,3.718]
[1719861261612,0.71518525,3487.5,3487.4,3.718]
[1719861264231,0.21879153,3487.5,3487.4,3.718]
[1719861264931,0.71518317,3487.5,3487.4,3.718]
[1719861266114,0.71518322,3487.5,3487.4,3.718]
[1719861267659,0.21879153,3487.5,3487.4,3.718]
[1719861268349,0.71517914,3487.5,3487.4,3.718]
[1719861268912,0.71517914,3487.5,3487.4,4.0898]
[1719861269108,0.21879153,3487.5,3487.4,4.0898]
[1719861269513,0.1204189,3487.5,3487.4,4.0898]
[1719861272261,0.1204189,3487.5,3487.4,3.3718]
[1719861272441,0.1204189,3487.5,3487.4,3.718]
[1719861272755,0.21885307,3487.5,3487.4,3.718]
[1719861274155,0.21885307,3487.5,3487.4,3.0]
[1719861274584,0.7810528,3487.5,3487.4,3.718]
[1719861274757,1.27743584,3487.5,3487.4,3.718]
[1719861275147,1.27742276,3487.5,3487.4,3.718]
[1719861275455,0.21885307,3487.5,3487.4,4.0898]
[1719861275868,0.1204189,3487.5,3487.4,4.0898]
[1719861276460,0.1204189,3487.5,3487.4,3.3718]
[1719861276798,0.1204189,3487.5,3487.4,4.0898]
[1719861279975,0.68247761,3487.5,3487.4,4.0898]
[1719861280143,0.68250901,3487.5,3487.4,4.0898]
[1719861280580,0.68251394,3487.5,3487.4,4.0898]
[1719861281541,0.68251394,3487.5,3487.4,3.3718]
[1719861281746,0.68251394,3487.5,3487.4,4.0898]
[1719861281950,0.78092379,3487.5,3487.4,4.0898]
[1719861282153,0.78092379,3487.5,3487.4,3.0]
[1719861282378,0.68251394,3487.5,3487.4,3.718]
[1719861283292,0.68254578,3487.5,3487.4,3.718]
[1719861285079,0.68254578,3487.5,3487.4,3.0]
[1719861285285,1.17892232,3487.5,3487.4,3.0]
[1719861285481,3.67604934,3487.5,3487.4,3.0]
[1719861286194,1.27734934,3487.5,3487.4,3.0]
[1719861286490,1.27740971,3487.5,3487.4,3.718]
[1719861286873,1.27740971,3487.5,3487.4,4.0898]
[1719861289093,0.78102772,3487.5,3487.4,4.0898]
[1719861289670,0.21884592,3487.5,3487.4,4.0898]
[1719861289857,0.78097743,3487.5,3487.4,3.718]
[1719861290057,0.21884592,3487.5,3487.4,3.718]
[1719861290482,0.78097887,3487.5,3487.4,3.718]
[1719861292784,0.21884592,3487.5,3487.4,3.718]
[1719861293527,0.78096573,3487.5,3487.4,3.718]
[1719861295021,0.78096573,3487.5,3487.4,3.0]
[1719861295213,1.27734071,3487.5,3487.4,3.718]
[1719861295822,0.78096573,3487.5,3487.4,3.718]
[1719861296028,0.7809886,3487.5,3487.4,3.718]
[1719861296622,1.2773592,3487.5,3487.4,3.718]
[1719861298291,1.2773592,3487.5,3487.4,3.0]
[1719861298491,1.2773592,3487.5,3487.4,3.718]
[1719861299327,0.71522009,3487.5,3487.4,12.08882]
[1719861299558,0.21884592,3487.5,3487.4,15.63882]
[1719861299742,2.2533,3488.8,3488.3,3.0]
[1719861299892,2.4768,3489.2,3488.7,0.718]
[1719861300234,2.4768,3489.2,3489.0,0.718]
[1719861300235,2.80810755,3489.1,3489.0,0.718]
[1719861301037,2.80810755,3489.1,3488.8,0.718]
[1719861301237,2.80810755,3489.0,3488.7,0.718]
[1719861301442,0.09185503,3489.0,3488.7,0.718]
[1719861301752,1.05789659,3488.9,3488.7,0.718]
[1719861301927,1.05789659,3488.8,3488.7,0.718]
[1719861302127,1.14985531,3488.8,3488.7,0.718]
[1719861302334,3.58065531,3488.8,3488.7,0.718]
[1719861302534,3.58065531,3488.8,3488.3,3.0]
[1719861302709,1.05789659,3488.7,3488.3,3.718]
[1719861302912,0.56167537,3488.6,3488.3,3.718]
[1719861303147,0.56167537,3488.5,3488.3,3.718]
[1719861303359,0.09199904,3488.6,3488.3,3.718]
[1719861303534,0.56168869,3488.5,3488.3,3.718]
[1719861303734,0.09199904,3488.5,3488.3,4.0898]
[1719861304045,2.4308,3488.8,3488.3,4.0898]
[1719861304240,1.0579139,3488.7,3488.5,0.718]
[1719861304444,0.56168851,3488.6,3488.5,0.718]
[1719861304776,0.56175002,3488.6,3488.4,0.718]
[1719861305054,0.56175002,3488.5,3488.4,0.718]
[1719861305661,0.09200047,3488.5,3488.4,0.718]
[1719861305949,0.56175002,3488.6,3488.4,0.718]
[1719861306150,0.65375049,3488.5,3488.4,0.718]
[1719861306952,0.09200047,3488.5,3488.4,0.718]
[1719861307353,2.4308,3488.8,3488.4,0.718]
[1719861307658,1.0580169,3488.7,3488.4,0.718]
[1719861307831,0.09200047,3488.7,3488.4,0.718]
[1719861308024,0.09200047,3488.7,3488.6,0.718]
[1719861308229,1.05800741,3488.7,3488.6,0.718]
[1719861308449,1.15000788,3488.7,3488.6,0.718]
[1719861309420,0.09200047,3488.7,3488.6,0.718]
[1719861309945,2.3337,3489.2,3488.7,3.0]
[1719861310149,2.3337,3489.9,3489.1,0.718]
[1719861310324,2.3337,3489.9,3488.7,5.92370082]
[1719861310325,1.05758648,3489.8,3489.4,0.718]
[1719861310521,1.05758648,3489.7,3488.7,3.60346573]
[1719861310728,1.05758648,3489.6,3489.2,0.718]
[1719861310941,2.3337,3489.9,3489.2,0.718]
[1719861311138,0.23337,3489.8,3489.2,0.718]
[1719861311367,1.29094865,3489.8,3489.2,0.718]
[1719861311663,1.05756406,3489.7,3489.2,0.718]
[1719861311838,1.05756406,3489.6,3489.2,0.718]
[1719861312039,1.05756406,3489.5,3489.2,0.718]
[1719861312251,0.23337,3489.8,3489.2,0.718]
[1719861312452,1.05756482,3489.7,3489.2,0.718]
[1719861312651,1.05756482,3489.6,3489.2,0.718]
[1719861312850,1.05756484,3489.5,3488.7,3.0]
[1719861313042,0.56142355,3489.4,3489.2,0.718]
[1719861313239,0.23337,3489.8,3489.2,0.718]
[1719861313454,2.4047,3489.6,3489.2,0.718]
[1719861313666,1.05760305,3489.5,3489.0,0.718]
[1719861313990,0.56144538,3489.4,3489.0,0.718]
[1719861314284,2.4047,3489.6,3489.0,0.718]
[1719861314563,1.05767894,3489.5,3489.0,0.718]
[1719861314731,0.56151022,3489.4,3489.0,0.718]
[1719861314931,2.4047,3489.6,3489.0,0.718]
[1719861315139,1.05765738,3489.5,3489.0,0.718]
[1719861315455,2.4047,3489.6,3489.0,0.718]
[1719861315662,1.05765623,3489.5,3489.0,0.718]
[1719861315864,2.4047,3489.6,3489.0,0.718]